Cogmind - Beta 16.1 @@@ ROGUE MODE // 2026.03.03 @ 01:56:45 Player: Savant Result: Destroyed by KS-WLN(j) with Overtuned Pulse Rifle Performance ------------- Evolutions (1) 500 Regions Visited (6) 1200 Robots Destroyed (88) 440 Value Destroyed (1902) 1902 Prototype IDs (18) 360 Alien Tech Used (0) 0 Bonus (300) 300 TOTAL SCORE: 4702 Bonus ------- Registered with UFD 300 Cogmind --------- Core Integrity 0/400 Matter 245/300 Energy 15/100 System Corruption 0% Temperature Cool (53) Movement Flying (40) Location -9/Scraptown Parts ------- > --- POWER (1) -------- (None) > --- PROPULSION (3) --- Improved Flight Unit > --- UTILITY (3) ------ Seismic Detector > --- WEAPON (2) ------- Great Maul > --- INVENTORY (5) ---- Surge Thruster Medium Storage Unit Peak State ------------ > --- POWER ------------ Cooled Ion Engine > --- PROPULSION ------- Improved Medium Treads Improved Flight Unit Cooled VTOL Module > --- UTILITY ---------- High-capacity Storage Unit Improved Light Armor Plating > --- WEAPON ----------- Great Maul Katana > --- INVENTORY -------- Cooled Ion Engine Light Treads Light Treads Improved Treads Surge Thruster Surge Thruster Surge Thruster Surge Thruster Medium Storage Unit Seismic Detector Layered Light Armor Plating Hacking Suite Authchip [Armor] Drone Bay Advanced Beam Cannon Assault Cannon Assault Cannon Heavy Flak Cannon Grenade Launcher Plasma Cutter [Rating: 31] Favorites ----------- Power Light Ion Engine Engine Light Ion Engine Propulsion Light Treads Treads Light Treads Wheel Wheel Flight Unit Cooled VTOL Module Utility High-capacity Storage Unit Device Seismic Detector Storage High-capacity Storage Unit Hackware Hacking Suite Protection Improved Light Armor Plating Weapon Assault Rifle Energy Gun Beamcaster Energy Cannon Light EM Pulse Cannon Ballistic Gun Assault Rifle Ballistic Cannon Assault Cannon Launcher Grenade Launcher Special Weapon Mining Laser Impact Weapon Great Maul Slashing Weapon Katana Build | -11 -10 -10 -9 -9 -9 -9 ------- Run | Yrd Mat Min Mat Sto Rec Scr Slots Evolved 2 | . . . 2 . . . Power . | . . . . . . . Propulsion 1 | . . . 1 . . . Utility 1 | . . . 1 . . . Weapon . | . . . . . . . Parts Attached 56 | 7 11 5 8 14 1 10 Power 4 | 1 1 . 1 1 . . Engine 4 | 1 1 . 1 1 . . Core . | . . . . . . . Reactor . | . . . . . . . Propulsion 20 | 2 1 . 2 9 . 6 Treads 14 | 2 1 . 2 7 . 2 Leg . | . . . . . . . Wheel 1 | . . . . 1 . . Hover . | . . . . . . . Flight 5 | . . . . 1 . 4 Utility 16 | 2 4 1 3 2 1 3 Device 4 | 1 2 1 . . . . Storage 5 | 1 2 . 1 . . 1 Processor . | . . . . . . . Hackware 2 | . . . 1 . . 1 Protection 5 | . . . 1 2 1 1 Artifact . | . . . . . . . Weapon 16 | 2 5 4 2 2 . 1 Energy Gun 1 | . . 1 . . . . Energy Cannon 1 | . . . . . . 1 Ballistic Gun 4 | 2 2 . . . . . Ballistic Cannon 4 | . . 1 1 2 . . Launcher 2 | . 1 1 . . . . Special Weapon 1 | . 1 . . . . . Impact Weapon 2 | . 1 1 . . . . Slashing Weapon 1 | . . . 1 . . . Piercing Weapon . | . . . . . . . Special Melee Weapon . | . . . . . . . Unidentified Prototypes 2 | . . . 1 1 . . Corrupted Parts 1 | . . 1 . . . . System Corruption 4 | . . 4 . . . . Parts Lost 15 | . 2 1 1 3 1 7 Power 1 | . . . . 1 . . Propulsion 7 | . 1 . 1 1 . 4 Utility 5 | . 1 . . 1 1 2 Weapon 2 | . . 1 . . . 1 Highest Loss Streak 7 | . 1 1 1 1 1 7 To Critical Strikes 1 | . . . . 1 . . Average Backups 14 | 4 9 9 19 19 19 15 Power . | . . . . . 1 . Propulsion 4 | 2 1 1 4 5 7 5 Utility 3 | . 1 4 5 5 4 4 Weapon 5 | . 4 3 7 7 6 3 Tool/Special . | . . . . . . . Unused Backups 21 | . 5 . 1 4 . 11 Power 2 | . . . . 1 . 1 Propulsion 6 | . 4 . . . . 2 Utility 4 | . . . 1 . . 3 Weapon 6 | . 1 . . 1 . 4 Tool/Special 3 | . . . . 2 . 1 Average Slot Usage (%) 97 | . 99 100 99 99 100 90 Engine 11 | . 14 14 11 11 11 8 Treads 29 | . 27 28 32 32 33 24 Flight 1 | . . . . . . 8 Device 6 | . 13 14 5 . . 2 Storage 11 | . 14 14 11 11 11 8 Hackware 5 | . . . 8 11 11 5 Protection 6 | . . . 7 10 11 10 Energy Gun 4 | . . 13 5 10 6 . Ballistic Gun 7 | . 24 8 . . . . Ballistic Cannon 4 | . . 5 6 10 6 . Impact Weapon 4 | . 3 . 5 . 4 10 Slashing Weapon 3 | . . . 4 . 4 10 Peak Build Rating 31 | 8 10 14 25 29 25 31 Average Rating 18 | 5 8 12 22 23 24 25 On Entrance 14 | . 8 10 12 25 25 24 Avg Prop Armor Cover (%) 9 | . . . . 21 . 9 Naked Turns . | . . . . . . . Heaviest Build 65 | 12 19 22 61 65 65 57 Greatest Support 73 | 40 40 40 60 60 60 73 Greatest Overweight (x) 5 | . . . 1 5 1 . Average Overweight (x) . | . . . . . . . Largest Inventory Capacity 20 | 8 10 10 20 20 20 20 Average Capacity 15 | 6 9 10 19 20 20 16 Most Carried 20 | 8 10 10 20 20 20 20 Average Carried 14 | 4 9 9 19 19 19 15 Final Capacity 20 | 8 10 10 20 20 20 5 Final Carried 20 | 8 9 10 20 20 20 2 Class Distribution -------------------- 67% | Mutant 31% | Scavenger-Mutant Dominant Class ---------------- Mutant | -10/Materials Mutant | -10/Mines Mutant | -9/Materials Scavenger-Mutant | -9/Storage Scavenger-Mutant | -9/Recycling Mutant | -9/Scraptown Resources | -11 -10 -10 -9 -9 -9 -9 ----------- Run | Yrd Mat Min Mat Sto Rec Scr Matter Collected 1965 | 281 575 126 370 512 51 50 Remotely . | . . . . . . . Salvage Created 2357 | 118 652 127 555 752 153 . Parts 179 | 11 53 14 28 68 5 . Haulers Intercepted 7 | . 2 . 3 2 . . Recyclers Shooed 1 | . 1 . . . . . Parts Field Recycled . | . . . . . . . Retrieved Matter . | . . . . . . . Parts Self-Destructed . | . . . . . . . Prevented . | . . . . . . . Parts Restored . | . . . . . . . Kills | -11 -10 -10 -9 -9 -9 -9 ------- Run | Yrd Mat Min Mat Sto Rec Scr Combat Hostiles Destroyed 56 | . 14 4 14 21 3 . Melee 10 | . 4 . 4 1 1 . Guns 11 | . 3 2 . 6 . . Cannons 8 | . . . 1 7 . . AOE 22 | . 7 2 6 7 . . Classes Destroyed 11 | 2 7 . 2 . . . Worker 5 | . 1 . 2 2 . . Builder 4 | . . . 1 2 1 . Tunneler 6 | 3 2 1 . . . . Hauler 7 | . 2 . 3 2 . . Recycler 2 | 1 1 . . . . . Mechanic 1 | . 1 . . . . . Operator 2 | . 2 . . . . . Watcher 5 | . 3 . 1 1 . . Swarmer 22 | . 6 2 6 8 . . Grunt 18 | . 8 2 3 5 . . Sentry 16 | . . . 5 8 3 . Best Kill Streak 6 | 3 5 2 6 5 1 . Combat Bots Only 4 | . 4 2 4 4 1 . Max Kills in Single Turn 3 | 1 2 1 3 3 1 . Gunslinging . | . . . . . . . Exploded 3 | . 2 1 2 3 . . Melee 1 | . 1 . 1 1 1 . Uniques/NPCs Destroyed . | . . . . . . . Combat | -11 -10 -10 -9 -9 -9 -9 -------- Run | Yrd Mat Min Mat Sto Rec Scr Hostile Shots Fired 319 | . 68 14 53 47 37 100 Missed 108 | . 26 7 10 12 5 48 Hits 211 | . 42 7 43 35 32 52 Melee 6 | . . . . . . 6 Projectile 205 | . 42 7 43 35 32 46 Critical Strikes 11 | . . . . 2 3 6 Damage Taken 3217 | . 558 109 530 621 485 914 Core 527 | . 99 16 75 28 100 209 Absorbed by Shields . | . . . . . . . Core Remaining (%) 77 | 100 . 54 . . . . Volleys Fired 119 | 6 56 7 11 39 . . Largest 2 | 2 2 2 2 2 . . Hottest 112 | 40 100 95 112 112 . . Shots Fired 213 | 12 105 14 12 70 . . Gun 158 | 12 98 12 1 35 . . Cannon 34 | . . . 4 30 . . Launcher 19 | . 5 2 7 5 . . Special 2 | . 2 . . . . . Kinetic 151 | 12 98 7 4 30 . . Thermal 43 | . 2 5 1 35 . . Explosive 19 | . 5 2 7 5 . . Electromagnetic . | . . . . . . . Robot Hit Streak 17 | 2 10 7 10 17 . . Robot Miss Streak 3 | 2 3 1 . 2 . . Penetration Max . | . . . . . . . Secondary Targets 1 | . . 1 . . . . Max Gunslinging Chain 1 | . . 1 . . . . Shots Hit Robots 194 | 6 82 7 29 51 18 1 Core Hits 100 | 5 39 6 18 31 1 . Critical Kills 1 | . 1 . . . . . Critical Parts Destroyed 11 | . 2 . 7 . 2 . Critical Strikes 18 | . 3 . 8 5 2 . Burn 4 | . . . . 4 . . Blast 1 | . . . . 1 . . Smash 12 | . 3 . 7 . 2 . Sever 1 | . . . 1 . . . Melee Attacks 112 | . 39 . 40 8 22 3 Impact 84 | . 39 . 23 1 19 2 Slashing 28 | . . . 17 7 3 1 Piercing . | . . . . . . . Sneak Attacks 12 | . 2 . 5 2 3 . Combat Hostiles . | . . . . . . . Follow-up Attacks 8 | . . . 5 . 2 1 Damage Inflicted 6065 | 74 1569 248 1773 1621 773 7 Guns 1520 | 74 752 120 21 553 . . Cannons 480 | . . . 24 456 . . Explosions 1539 | . 391 128 569 451 . . Melee 2526 | . 426 . 1159 161 773 7 Ramming . | . . . . . . . Kinetic 1342 | 74 752 36 24 456 . . Thermal 658 | . . 84 21 553 . . Explosive 1539 | . 391 128 569 451 . . Electromagnetic . | . . . . . . . Impact 1769 | . 426 . 635 . 708 . Slashing 757 | . . . 524 161 65 7 Piercing . | . . . . . . . Highest Corruption 4 | . . 4 . 1 1 . Average Corruption 1 | . . 4 . 1 1 . Corruption Purged . | . . . . . . . Corruption Blocked . | . . . . . . . Effects 17 | . . . . 12 5 . Message Errors 5 | . . . . 2 3 . Matter Fused 3 | . . . . 2 1 . Heat Flow Errors 2 | . . . . 2 . . Energy Discharges 2 | . . . . 2 . . Parts Fused 1 | . . . . . 1 . Data Loss (minor) 2 | . . . . 2 . . Data Loss (major) 1 | . . . . 1 . . Misfires 1 | . . . . 1 . . Overload Shots . | . . . . . . . Overflow Damage 754 | . 63 7 415 7 262 . Projectiles . | . . . . . . . Explosions 29 | . 11 7 4 7 . . Melee 725 | . 52 . 411 . 262 . Knockbacks 4 | . 1 . . 3 . . Impact 1 | . 1 . . . . . Kinetic 3 | . . . . 3 . . Secondary . | . . . . . . . Self-Inflicted Damage 175 | . 75 32 . 68 . . Shots 6 | . 3 1 . 2 . . Rammed . | . . . . . . . Targets Rammed . | . . . . . . . Kicked . | . . . . . . . Crushed . | . . . . . . . Highest Temperature 338 | . 20 141 51 338 8 30 Average Temperature 71 | . 6 65 30 84 7 13 Received Heat Transfer 1068 | . 228 30 156 177 189 288 Siege Activations . | . . . . . . . Martial Activations . | . . . . . . . Shielding Activations . | . . . . . . . Robots Disrupted . | . . . . . . . Combat Hostiles . | . . . . . . . Robots Corrupted 8 | . 1 . 5 . 2 . Combat Hostiles 5 | . . . 3 . 2 . Parts Fried 10 | . 1 . 8 . 1 . Impact Corruptions 18 | . 4 . 8 . 6 . Robots Melted . | . . . . . . . Combat Hostiles . | . . . . . . . Parts Melted 3 | . . . 1 2 . . Heat Transferred 1443 | . . 148 37 1258 . . Parts Sabotaged . | . . . . . . . Parts Stolen . | . . . . . . . Parts Stripped . | . . . . . . . Power Chain Reactions . | . . . . . . . Alert | -11 -10 -10 -9 -9 -9 -9 ------- Run | Yrd Mat Min Mat Sto Rec Scr Maximum Alert Level 1 | . 1 . 1 1 . . Low Security (%) 83 | 100 91 100 94 45 100 . Level 1 16 | . 8 . 5 54 . . Level 2 . | . . . . . . . Level 3 . | . . . . . . . Level 4 . | . . . . . . . Level 5 . | . . . . . . . High Security . | . . . . . . . Max Security . | . . . . . . . Peak Influence 285 | 10 222 87 213 285 92 . Initial 92 | . . 67 . 69 92 . Average 92 | 1 87 16 79 191 33 . Influence Increases 2189 | 20 601 120 471 724 253 . Destroy 0b10 Robot/C 1120 | . 280 80 280 420 60 . Destroy 0b10 Robot/NC 160 | 20 60 5 35 35 5 . Destroy Leader 294 | . 70 20 78 126 . . Successful Hack 85 | . 25 . 36 16 8 . Select Force Hacks 240 | . 60 . . . 180 . Disable Machine 120 | . 45 . . 75 . . Destroy Structure 125 | . 31 15 42 37 . . Lose Combat Pursuer 45 | . 30 . . 15 . . Influence Decreases 2189 | 20 428 293 305 653 489 1 Entered New Map 349 | . . 106 . 97 145 1 Time Decay 1770 | 20 408 177 305 526 334 . Lost Part 70 | . 20 10 . 30 10 . Squads Dispatched 5 | . 4 . . 1 . . Investigation 2 | . 2 . . . . . Extermination . | . . . . . . . Reinforcement 3 | . 2 . . 1 . . Assault . | . . . . . . . Garrison . | . . . . . . . Intercept . | . . . . . . . Searches Triggered . | . . . . . . . Construction Impeded . | . . . . . . . Haulers Reinforced . | . . . . . . . Active Scanning Responses . | . . . . . . . Cargo Convoy Interrupts . | . . . . . . . Stealth | -11 -10 -10 -9 -9 -9 -9 --------- Run | Yrd Mat Min Mat Sto Rec Scr Distress Signals 5 | . 1 . 1 3 . . Communications Jammed . | . . . . . . . Distress Signals . | . . . . . . . Times Spotted 120 | . 26 5 21 26 3 39 Peak Tracking Total 40 | . 3 3 5 5 2 40 Tactical Retreats 3 | . 1 . . 1 . 1 Traps | -11 -10 -10 -9 -9 -9 -9 ------- Run | Yrd Mat Min Mat Sto Rec Scr Traps Triggered 3 | . . . . 3 . . Indirectly . | . . . . . . . Trap Hack Attempts . | . . . . . . . Triggered . | . . . . . . . Disarmed 6 | . . . . 6 . . Reprogrammed . | . . . . . . . Reused 1 | . . . . . . 1 Traps Extracted . | . . . . . . . Installed 3 | . . . . . . 3 Triggered . | . . . . . . . Most Traps Carried 3 | . . . . . . 3 Machines | -11 -10 -10 -9 -9 -9 -9 ---------- Run | Yrd Mat Min Mat Sto Rec Scr Machines Disabled 9 | . 3 . . 5 . 1 Max in Single Turn 1 | . 1 . . 1 . 1 Garrison Access 1 | . . . . 1 . . Machines Repaired . | . . . . . . . Machines Dismantled . | . . . . . . . Machines Sabotaged . | . . . . . . . Overloaded Fab Kills . | . . . . . . . Hacking | -11 -10 -10 -9 -9 -9 -9 --------- Run | Yrd Mat Min Mat Sto Rec Scr Machines Accessed 37 | . 8 1 9 9 8 2 Terminals 24 | . 6 . 8 8 2 . Fabricators . | . . . . . . . Repair Stations . | . . . . . . . Recycling Units 8 | . 2 . . . 6 . Scanalyzers 1 | . . . 1 . . . Garrison Access 1 | . . . . 1 . . Total Hacks 91 | . 24 1 33 21 10 2 Successful 64 | . 11 1 27 14 9 2 Failed 26 | . 13 . 5 7 1 . Catastrophic . | . . . . . . . Database Lockouts 1 | . . . 1 . . . Manual 54 | . 23 . 14 9 8 . Terminals 69 | . 22 . 25 18 4 . Fabricators . | . . . . . . . Repair Stations . | . . . . . . . Recycling Units 8 | . 2 . . . 6 . Scanalyzers 8 | . . . 8 . . . Garrison Access 3 | . . . . 3 . . Terminal Hacks 24 | . 4 1 8 8 1 2 Record 1 | . . . . . . 1 Part Schematic 1 | . 1 . . . . . Robot Analysis 2 | . 1 . 1 . . . Prototype ID Bank 8 | . 1 . 5 1 1 . Open Door 4 | . . 1 . 3 . . Branch Access Points 1 | . . . 1 . . . Terminal Index 1 | . 1 . . . . . Locate Traps 3 | . . . . 3 . . Disarm Traps 1 | . . . . 1 . . Hauler Manifests 1 | . . . 1 . . . Proto ID Catalog 1 | . . . . . . 1 Fabricator Hacks . | . . . . . . . Repair Station Hacks . | . . . . . . . Recycling Unit Hacks . | . . . . . . . Scanalyzer 7 | . . . 7 . . . Insert Component 3 | . . . 3 . . . Analyze 3 | . . . 3 . . . Retrieve Study 1 | . . . 1 . . . Garrison Access Hacks 1 | . . . . 1 . . Seal Access 1 | . . . . 1 . . Unauthorized Hacks 32 | . 7 . 12 5 8 . Terminals 24 | . 5 . 12 5 2 . Track 1 | . . . 1 . . . Assimilate 7 | . 1 . 3 3 . . Botnet 7 | . 2 . 2 1 2 . Operators 3 | . 1 . 1 1 . . Skim 6 | . 1 . 5 . . . Fabricators . | . . . . . . . Repair Stations . | . . . . . . . Recycling Units 8 | . 2 . . . 6 . Tunnel 8 | . 2 . . . 6 . Scanalyzers . | . . . . . . . Garrison Access . | . . . . . . . Data Cores Recovered . | . . . . . . . Used . | . . . . . . . Hacking Detections 17 | . 6 . 5 5 1 . Full Trace Events . | . . . . . . . Feedback Events . | . . . . . . . Feedback Blocked . | . . . . . . . Robot Schematics Acquired . | . . . . . . . Robots Built . | . . . . . . . Authchips . | . . . . . . . Time . | . . . . . . . Total Robot Build Rating . | . . . . . . . Part Schematics Acquired 5 | . 1 . 3 . . 1 Parts Built . | . . . . . . . Authchips . | . . . . . . . Time . | . . . . . . . Total Part Build Rating . | . . . . . . . Part Studies Acquired 1 | . . . 1 . . . Parts Repaired . | . . . . . . . Time . | . . . . . . . Parts Recycled . | . . . . . . . Recycled Matter . | . . . . . . . Retrieved Matter . | . . . . . . . Retrieved Components . | . . . . . . . Parts Scanalyzed 3 | . . . 3 . . . Part Schematics Acquired 3 | . . . 3 . . . Parts Damaged . | . . . . . . . Bothacking | -11 -10 -10 -9 -9 -9 -9 ------------ Run | Yrd Mat Min Mat Sto Rec Scr Used RIF Installer . | . . . . . . . Robots Hacked . | . . . . . . . Non-combat . | . . . . . . . Combat . | . . . . . . . Robot Hacks Applied . | . . . . . . . Relay Couplers Released . | . . . . . . . Fabnet Peak Effective % . | . . . . . . . Robots Rewired . | . . . . . . . Allies Hacked . | . . . . . . . Hacks Repelled . | . . . . . . . Allies | -11 -10 -10 -9 -9 -9 -9 -------- Run | Yrd Mat Min Mat Sto Rec Scr Total Allies 2 | . . . 1 1 . . Largest Group 1 | . . . 1 1 1 1 Highest-Rated Group 10 | . . . 10 10 10 10 Highest-Rated Ally 10 | . . . 10 10 10 10 Total Orders 3 | . . . 2 . . 1 STAY 2 | . . . 1 . . 1 FOLLOW 1 | . . . 1 . . . Ally Attacks . | . . . . . . . Total Damage . | . . . . . . . Kills . | . . . . . . . Allies Corrupted . | . . . . . . . Allies Melted . | . . . . . . . Intel | -11 -10 -10 -9 -9 -9 -9 ------- Run | Yrd Mat Min Mat Sto Rec Scr Active Infowar (turns) 3629 | 27 1998 859 360 . . 385 Terrain 1003 | . 472 322 209 . . . Seismic 2835 | 27 1526 537 360 . . 385 Robot Analysis Total 2 | . 1 . 1 . . . Derelict Logs Recovered 1 | . . 1 . . . . Drone Launches . | . . . . . . . Drone Recoveries . | . . . . . . . Exploration | -11 -10 -10 -9 -9 -9 -9 ------------- Run | Yrd Mat Min Mat Sto Rec Scr Turns Passed 7812 | 119 2040 859 1090 1467 769 1468 Spaces Moved 4619 | 54 1016 475 525 647 382 1520 Core 4 | 4 . . . . . . Treads 3751 | 50 1016 475 525 640 382 663 Legs . | . . . . . . . Wheels 7 | . . . . 7 . . Hover . | . . . . . . . Flight 857 | . . . . . . 857 Fastest Speed 24 | 50 160 160 160 140 160 24 Average Speed 143 | 151 160 160 169 188 182 88 Slowest Speed 200 | 160 160 160 200 200 200 160 Overloaded Moves 11 | . . . . . . 11 Propulsion Burnouts . | . . . . . . . Robots Hopped 7 | . . . . . . 7 Potential Cave-ins . | . . . . . . . Cave-ins Triggered . | . . . . . . . Exploration Rate (%) 70 | 4 98 93 56 89 78 74 Regions Visited 6 Branch Regions 4 Pre-discovered Areas 9 | . 2 . 1 . 6 . Known Exits Taken 2 | . . . 1 . 1 . Unknown Exits Taken 4 | 1 1 1 . 1 . . Scrap Searched 7 | . . 2 . . . 5 Spaces Dug 43 | . 14 8 14 7 . . Terrain Destroyed 127 | . 32 15 41 39 . . Melee 14 | . 7 . 6 1 . . Projectile 10 | . 2 . 1 7 . . AOE 103 | . 23 15 34 31 . . Terrain Rammed . | . . . . . . . Walls Destroyed . | . . . . . . . Machines Disabled . | . . . . . . . Actions | -11 -10 -10 -9 -9 -9 -9 --------- Run | Yrd Mat Min Mat Sto Rec Scr Total 5397 | 78 1253 557 642 814 413 1640 Wait 317 | 2 87 63 31 63 9 62 Move 4600 | 53 1015 474 524 646 381 1507 Hop 6 | . . . . . . 6 Pick Up 63 | 9 12 3 13 10 1 15 Fast Attach 18 | 7 . . 1 5 . 5 Attach 11 | . 2 1 2 1 1 4 Detach 2 | . . . . . . 2 Swap 93 | . 29 8 26 23 2 5 Drop 65 | 1 13 1 2 19 . 29 Fire 119 | 6 56 7 11 39 . . Melee 100 | . 39 . 32 8 19 2 Ram . | . . . . . . . Kick . | . . . . . . . Crush . | . . . . . . . Escape Stasis . | . . . . . . . Rewire . | . . . . . . . Trap 3 | . . . . . . 3 Miscellaneous . | . . . . . . . Route ------- -11/Scrapyard -10/Materials (discovered 6 exits: *Mat x3 / *Min x2 / [*Sub]) -10/Mines (discovered 3 exits: *Mat x2 / [*Sub]) -9/Materials (discovered 5 exits: *Mat x3 / Min / *Sto) -9/Storage (discovered 2 exits: *Mat / *Rec) -9/Recycling (discovered 2 exits: *Fac / *Scr) -9/Scraptown (discovered 1 exit: [*Fac]) History --------- Turn | Location | Event 14 | -11/Scrapyard | Discovered new exit (range 15) 120 | -11/Scrapyard | Entered Materials 157 | -10/Materials | Discovered new exit (range 14) 346 | -10/Materials | Build established: Mutant 349 | -10/Materials | Discovered new exit (range 12) 815 | -10/Materials | Discovered new exit (range 13) 843 | -10/Materials | Discovered new exit (range 12) 1028 | -10/Materials | Discovered new exit (range 3) 1628 | -10/Materials | Discovered new exit (range 13) 2160 | -10/Materials | Entered Mines 2165 | -10/Mines | Met a Derelict who couldn't figure out how to use a Trap Extractor 2268 | -10/Mines | Discovered new exit (range 11) 2284 | -10/Mines | Discovered new exit (range 5) 2316 | -10/Mines | Discovered new exit (range 12) 2997 | -10/Mines | Learned 4 Materials zone layouts 3019 | -10/Mines | Entered Materials 3019 | -9/Materials | Evolved 2 slots: Propulsion x1, Utility x1 3231 | -9/Materials | Central database locked down 3279 | -9/Materials | Identified exit to Mines 3279 | -9/Materials | Identified exit to Storage 3304 | -9/Materials | Discovered new exit (range 16) 3869 | -9/Materials | Learned Storage garrison access intel 3911 | -9/Materials | Learned location of Mines (-8) 3944 | -9/Materials | Learned Storage stockpile data 3966 | -9/Materials | Learned location of 1 exit from Storage 3977 | -9/Materials | Learned Recycling recycling unit intel 3979 | -9/Materials | Learned location of 1 exit from Recycling 3980 | -9/Materials | Identified exit to Materials 3992 | -9/Materials | Learned 4 Recycling zone layouts 4015 | -9/Materials | Learned Recycling recycling unit intel 4109 | -9/Materials | Entered Storage 4109 | -9/Storage | Accompanied by 1 ally 4112 | -9/Storage | Loaded intel: 1 garrison access location 4460 | -9/Storage | Build established: Scavenger-Mutant 5491 | -9/Storage | Used back door to open Recycling access 5491 | -9/Storage | Discovered new exit (range 5) 5576 | -9/Storage | Entered Recycling 5576 | -9/Recycling | Accompanied by 1 ally 5577 | -9/Recycling | Identified exit to Scraptown 5578 | -9/Recycling | Identified exit to Factory 5579 | -9/Recycling | Loaded intel: 6 recycling unit locations 6068 | -9/Recycling | Core integrity fell below 50% 6307 | -9/Recycling | Scanned before Scraplab entrance 6329 | -9/Recycling | Entered Scraplab 6345 | -9/Recycling | Entered Scraptown 6345 | -9/Scraptown | Accompanied by 1 ally 6345 | -9/Scraptown | System corruption cleaned by C-Scrubber 6538 | -9/Scraptown | Visited TADAMA 6562 | -9/Scraptown | Visited IN-MT5's Study 6576 | -9/Scraptown | Visited Cave Peace 6658 | -9/Scraptown | Build established: Mutant 6660 | -9/Scraptown | Heard Great Nut preacher, LISTEN AND RECITE! 6915 | -9/Scraptown | Visited Symbiants 6942 | -9/Scraptown | Visited Spacefarers 6971 | -9/Scraptown | Visited Fellowship of the Rings 7006 | -9/Scraptown | Visited Cyclists 7032 | -9/Scraptown | Visited UFD Registry 7032 | -9/Scraptown | Registered with UFD as "Gammahead" 7064 | -9/Scraptown | Entered Cyclist Reading Room 7158 | -9/Scraptown | Visited Science Guys 7212 | -9/Scraptown | Visited LU-1G1's Boring Crew 7259 | -9/Scraptown | Visited Observation Area 7273 | -9/Scraptown | Visited A0-MCA Data Center 7294 | -9/Scraptown | Visited Supply Room 7318 | -9/Scraptown | Visited DA-N13 Charitable Foundation 7324 | -9/Scraptown | Found DCF Scrap (33 items) 7487 | -9/Scraptown | Discovered new exit (range 7) 7642 | -9/Scraptown | Warned about trapping Scraptown 7778 | -9/Scraptown | Attacked by Scraptown defenders 7809 | -9/Scraptown | Core integrity fell below 20% 7813 | -9/Scraptown | Destroyed by KS-WLN(j) with Overtuned Pulse Rifle Last Messages --------------- 07788_ ON-4BL(j): "It's scrappin' time!" 07791_ Penetrated by Bolt. 07795_ Critical hit (Burn: +50). 07797_ Triborg activates siege mode. 07797_ Penetrated by Siege Slug. 07797_ Surge Thruster destroyed. 07797_ Imp. Light Armor Plating destroyed. 07797_ Siege Slug penetrates Wall. 07798_ Machine disabled. 07801_ SV-2NP(p): "Batten down the hatches, man the cannons, all bots on deck!" 07801_ IN-MT5's Safe breached. 07804_ Extracted schematic archive: IN-MT5's Pitchfork "Insurrection". 07807_ Hacking Suite destroyed. 07808_ Siege Slug penetrates Wall. 07810_ Surge Thruster destroyed. 07811_ Critical hit (Burn: +50). 07813_ Cld. VTOL Module destroyed. 07813_ Surge Thruster destroyed. 07813_ Critical hit (Burn: +50). Map ----- +----------------------------------------------------+ | " #??#" | | " #??#" | | ######################## " #??#" | | ??????????????????????# " #??# | | ######?????????#####?### """%"""""############# | | """""#??????""""""""?# | | "#?????#""""""" # | | ] = "#?????#"" # | | = = "#?????#"" | | =!= "#?????#""" # | | | !! "#?????#"" # ################# | | ! * "#?????#"X ?# #???????????????# | | !=] "#?????#""" ?# #???????????????# | | "#?????#"" ??# #???????????????# | | "" ""#??????"" ??# #???????????????# | | ## ###??????""""""???# j #???????????????# | | ## ###??????""""""???# #???????######### | | "" ""#????????###????# p#?????###"""""""# | | "#???????????????# #?????# "# | | "" "#????????######?# p g#?????###" "# | | "" "#???????#""""" # #?????# " ""# | | "#???????# " " # #?????# " ""#% | | ""#???????# #?????# " " " | | """""#???????# """ # #?????# " " | | """""????????# """ # x#?????#""" "# | | """"?????????# """ ?# @ #?????# # | | ####?????????? """ ?# #######"#### #### | | ######???????? """ ??# | | ""X""#???????? ??# x | | "#???????? ???# % | | "#????????""""???# x ] | | "#????????######## | | "#????????## j | | "#????????# E | | " """########### E | | ##########;; ############## ### | | #????# #??????????? ## | | " """##"" """### #????# #????????? ## | | "##"" "#?# #????# " #??????? ## | | " "##"" "#?# #????# """ #?????# ## | | " "##"" "#?# #????# """"" #?????# """"" ## | | " " "##"%= "#?# #????# ""X"" #?????# """"" ## | | """ "##" "#?# #????? "" "" #?????# """"" ## | | """""##""""""#?# #??????? #?????# ? ## | | ##############?# #???????######?????#?????? ## | | ???????#####???# #?????????????????????????##### | | ???????#"""#???# #?????????????????????????????# | | ???????#" "#???# #??????????????????????######## | | ???????# #???? #??????????????????????"""""""" | | ???????# ##### #?????????????????????""" """"" | +----------------------------------------------------+ Best States ------------- Heat Dissipation 28 Energy Generation 14 Energy Capacity 280 Matter Stores 300 Matter Capacity 300 Sight Range 16 Terrain Scan Range 16 Terrain Scan Density 10 Armor Coverage 225 Evasion (%) 64 Recoil Reduction 3 Offensive Hacking 10 Authchip Count 1 Item Schematics ----------------- Huge Storage Unit | -10/Materials | Hacked Hacking Suite | -9/Materials | Scanalyzed Med. Storage Unit | -9/Materials | Scanalyzed Imp. Light Armor Plating | -9/Materials | Scanalyzed IN-MT5's Pitchfork "Insurrection" | -9/Scraptown | Archive Robot Schematics ------------------ None Fabricated ------------ Nothing Repaired ---------- Nothing Studied --------- Lgt. Treads | -9/Materials | Hacked Alien Tech Used ----------------- None Achievements -------------- None Challenges ------------ None Game ------ Seed PortableBoreHammer Manual? 0 Play Time 00:56:39 Cumulative 1110.9 hours Start 2026.03.03 @ 00:57:33 End 2026.03.03 @ 01:56:45 Sessions 3 Manual Loads 0 Difficulty Rogue Special Mode None Game No. 202 Rogue 202 Adventurer 0 Explorer 0 Win Type - Total 66 Types 25/7/10/1/3/1/10/4/3/2 Lore% 95 Gallery% 91 Achievement% 83 Wizard Run 0 Options --------- Layout 0 ASCII 0 Keyboard 0 Movement Numpad Keybinds 0 Fullscreen 1 Font 18/SmallcapsGlow Map View 76x50 Zoom Use 0% Tactical HUD 1 Map Filters NONE Filters NONE Steam 1 RUN: 6d4d0e82-e210-43b6-a6d0-51f7775c4b20